[Event "Late-Titled-Tuesday-Blitz-June-04-2024"]
[Site "Chess.com"]
[Date "2024.06.04"]
[Round "2"]
[White "PotapovaM"]
[Black "Yaacovn"]
[Result "0-1"]
[WhiteElo "2536"]
[BlackElo "2797"]
[TimeControl "180+1"]
[EndTime "14:20:17 PDT"]
[Termination "Yaacovn won by checkmate"]

1. e4 {[%clk 0:03:00.9]} 1... c6 {[%clk 0:02:54.6]} 2. d4 {[%clk 0:02:57.7]}
2... d5 {[%clk 0:02:33]} 3. exd5 {[%clk 0:02:53.6]} 3... cxd5 {[%clk 0:02:10.5]}
4. Bd3 {[%clk 0:02:53.4]} 4... Nf6 {[%clk 0:02:09.1]} 5. c3 {[%clk 0:02:45.7]}
5... Nc6 {[%clk 0:02:09]} 6. Bf4 {[%clk 0:02:39.5]} 6... Bg4 {[%clk 0:02:01]} 7.
Qb3 {[%clk 0:02:38.9]} 7... Qd7 {[%clk 0:02:00.1]} 8. Nd2 {[%clk 0:02:38.5]}
8... e6 {[%clk 0:01:47.6]} 9. Ngf3 {[%clk 0:02:38.2]} 9... Bd6 {[%clk
0:01:46.5]} 10. Bxd6 {[%clk 0:02:37.1]} 10... Qxd6 {[%clk 0:01:46.3]} 11. O-O
{[%clk 0:02:37.2]} 11... O-O {[%clk 0:01:41.9]} 12. Rae1 {[%clk 0:02:36.5]}
12... Rab8 {[%clk 0:01:35.5]} 13. Ne5 {[%clk 0:02:30.4]} 13... b5 {[%clk
0:01:21.2]} 14. Qc2 {[%clk 0:02:20.1]} 14... Bh5 {[%clk 0:01:10.7]} 15. f4
{[%clk 0:01:58.6]} 15... Rfc8 {[%clk 0:01:09.6]} 16. Nxc6 {[%clk 0:01:17.5]}
16... Qxc6 {[%clk 0:01:08.5]} 17. a3 {[%clk 0:01:16.5]} 17... a5 {[%clk
0:01:02.5]} 18. f5 {[%clk 0:01:12.7]} 18... exf5 {[%clk 0:00:58.4]} 19. Bxf5
{[%clk 0:01:11]} 19... Bg6 {[%clk 0:00:58.2]} 20. Nf3 {[%clk 0:01:05.2]} 20...
Re8 {[%clk 0:00:23.9]} 21. Ne5 {[%clk 0:01:03]} 21... Qd6 {[%clk 0:00:24]} 22.
h3 {[%clk 0:00:40.3]} 22... b4 {[%clk 0:00:20.5]} 23. axb4 {[%clk 0:00:41.2]}
23... axb4 {[%clk 0:00:20.5]} 24. Qa4 {[%clk 0:00:41.9]} 24... bxc3 {[%clk
0:00:19.9]} 25. bxc3 {[%clk 0:00:42.5]} 25... Ra8 {[%clk 0:00:17]} 26. Qb5
{[%clk 0:00:38.4]} 26... Rab8 {[%clk 0:00:15.4]} 27. Qa4 {[%clk 0:00:38.1]}
27... Qc7 {[%clk 0:00:14.4]} 28. Nc6 {[%clk 0:00:27.1]} 28... Ra8 {[%clk
0:00:12.4]} 29. Rxe8+ {[%clk 0:00:23.9]} 29... Rxe8 {[%clk 0:00:12.2]} 30. Ne5
{[%clk 0:00:20.4]} 30... Rf8 {[%clk 0:00:10.6]} 31. Qa3 {[%clk 0:00:17.9]} 31...
Qb6 {[%clk 0:00:05]} 32. Kh2 {[%clk 0:00:15.5]} 32... Bxf5 {[%clk 0:00:05]} 33.
Rxf5 {[%clk 0:00:15.4]} 33... Qe6 {[%clk 0:00:05.7]} 34. Rf3 {[%clk 0:00:14.3]}
34... Ne4 {[%clk 0:00:06.2]} 35. Qa7 {[%clk 0:00:13]} 35... f6 {[%clk
0:00:06.1]} 36. Ng4 {[%clk 0:00:11.2]} 36... h5 {[%clk 0:00:06.2]} 37. Ne3
{[%clk 0:00:11.1]} 37... Nxc3 {[%clk 0:00:06.4]} 38. Nf5 {[%clk 0:00:11]} 38...
Qf7 {[%clk 0:00:05.7]} 39. Qxf7+ {[%clk 0:00:10.2]} 39... Rxf7 {[%clk
0:00:05.9]} 40. Rxc3 {[%clk 0:00:10.9]} 40... Kh7 {[%clk 0:00:06]} 41. Ne3
{[%clk 0:00:11]} 41... Rd7 {[%clk 0:00:05.6]} 42. Rc5 {[%clk 0:00:11.4]} 42...
Kg6 {[%clk 0:00:06.1]} 43. Rxd5 {[%clk 0:00:11.9]} 43... Re7 {[%clk 0:00:06.7]}
44. Nf5 {[%clk 0:00:11.7]} 44... Re2 {[%clk 0:00:06.5]} 45. Nh4+ {[%clk
0:00:11.9]} 45... Kh6 {[%clk 0:00:05.1]} 46. Nf3 {[%clk 0:00:12.2]} 46... g5
{[%clk 0:00:05.3]} 47. Kg3 {[%clk 0:00:12.5]} 47... h4+ {[%clk 0:00:05]} 48. Kh2
{[%clk 0:00:12.2]} 48... Kg6 {[%clk 0:00:05.5]} 49. Rd6 {[%clk 0:00:12.1]} 49...
Re3 {[%clk 0:00:05.7]} 50. d5 {[%clk 0:00:11.5]} 50... Kf5 {[%clk 0:00:04.9]}
51. Rd8 {[%clk 0:00:10.5]} 51... Rd3 {[%clk 0:00:05]} 52. d6 {[%clk 0:00:10.2]}
52... Ke6 {[%clk 0:00:05.5]} 53. Re8+ {[%clk 0:00:08.9]} 53... Kd7 {[%clk
0:00:04.5]} 54. Rf8 {[%clk 0:00:09.1]} 54... Rxd6 {[%clk 0:00:04.4]} 55. Kg1
{[%clk 0:00:06.6]} 55... Ke7 {[%clk 0:00:04.8]} 56. Ra8 {[%clk 0:00:06.1]} 56...
Rd1+ {[%clk 0:00:05.7]} 57. Kf2 {[%clk 0:00:06.5]} 57... Kf7 {[%clk 0:00:06.4]}
58. Ra5 {[%clk 0:00:05.9]} 58... Rb1 {[%clk 0:00:06.4]} 59. Ke2 {[%clk
0:00:05.9]} 59... Rb2+ {[%clk 0:00:06.8]} 60. Nd2 {[%clk 0:00:06.5]} 60... Kg6
{[%clk 0:00:06.6]} 61. Ra6 {[%clk 0:00:06.4]} 61... Rb4 {[%clk 0:00:06.9]} 62.
Ke3 {[%clk 0:00:06.7]} 62... Kf5 {[%clk 0:00:07.3]} 63. Ra5+ {[%clk 0:00:06.6]}
63... Kg6 {[%clk 0:00:07.7]} 64. Ne4 {[%clk 0:00:06.8]} 64... Rb6 {[%clk
0:00:06.8]} 65. Ra4 {[%clk 0:00:06.5]} 65... Re6 {[%clk 0:00:06.9]} 66. Kf3
{[%clk 0:00:06.6]} 66... Rb6 {[%clk 0:00:06.1]} 67. Nd2 {[%clk 0:00:05.9]} 67...
Rd6 {[%clk 0:00:05.5]} 68. Nc4 {[%clk 0:00:06.4]} 68... Rd3+ {[%clk 0:00:05.4]}
69. Ne3 {[%clk 0:00:07]} 69... Rb3 {[%clk 0:00:05]} 70. Ke2 {[%clk 0:00:06.8]}
70... Rb2+ {[%clk 0:00:05.2]} 71. Kf3 {[%clk 0:00:07.4]} 71... Rb3 {[%clk
0:00:05.8]} 72. Ra6 {[%clk 0:00:07.7]} 72... Rc3 {[%clk 0:00:04.7]} 73. Rb6
{[%clk 0:00:07.8]} 73... Ra3 {[%clk 0:00:04.5]} 74. Rd6 {[%clk 0:00:07.4]} 74...
Rb3 {[%clk 0:00:04.5]} 75. Kf2 {[%clk 0:00:07.4]} 75... Rb2+ {[%clk 0:00:04.7]}
76. Kg1 {[%clk 0:00:07.8]} 76... Rb8 {[%clk 0:00:03.3]} 77. Ng4 {[%clk
0:00:07.2]} 77... Rf8 {[%clk 0:00:03.7]} 78. Kf2 {[%clk 0:00:07.2]} 78... Kg7
{[%clk 0:00:03.9]} 79. Kf3 {[%clk 0:00:07.3]} 79... f5 {[%clk 0:00:04.2]} 80.
Ne5 {[%clk 0:00:07.5]} 80... Rf6 {[%clk 0:00:03.6]} 81. Rd7+ {[%clk 0:00:06.7]}
81... Kh6 {[%clk 0:00:03.5]} 82. Nd3 {[%clk 0:00:05.7]} 82... Ra6 {[%clk
0:00:03.4]} 83. Rd5 {[%clk 0:00:05.1]} 83... Ra3 {[%clk 0:00:02.9]} 84. Kf2
{[%clk 0:00:04.9]} 84... Ra2+ {[%clk 0:00:03.2]} 85. Kg1 {[%clk 0:00:04.7]}
85... Rd2 {[%clk 0:00:03.3]} 86. Nb4 {[%clk 0:00:02.4]} 86... Rb2 {[%clk
0:00:02.8]} 87. Nc6 {[%clk 0:00:02.4]} 87... f4 {[%clk 0:00:01.9]} 88. Kh2
{[%clk 0:00:02.6]} 88... f3 {[%clk 0:00:01.7]} 89. Kh1 {[%clk 0:00:02.6]} 89...
Rxg2 {[%clk 0:00:01.9]} 90. Ne5 {[%clk 0:00:03.2]} 90... Rg3 {[%clk 0:00:02.4]}
91. Ng4+ {[%clk 0:00:03.2]} 91... Kg6 {[%clk 0:00:03.2]} 92. Rd6+ {[%clk
0:00:03.4]} 92... Kf5 {[%clk 0:00:03.2]} 93. Rf6+ {[%clk 0:00:03.7]} 93... Ke4
{[%clk 0:00:03.8]} 94. Nf2+ {[%clk 0:00:03.8]} 94... Ke3 {[%clk 0:00:03.8]} 95.
Ng4+ {[%clk 0:00:04.6]} 95... Ke2 {[%clk 0:00:04.2]} 96. Re6+ {[%clk 0:00:05]}
96... Kd2 {[%clk 0:00:04.5]} 97. Rf6 {[%clk 0:00:05]} 97... Rxh3+ {[%clk
0:00:04.2]} 98. Nh2 {[%clk 0:00:05.2]} 98... Ke2 {[%clk 0:00:03.7]} 99. Re6+
{[%clk 0:00:05.4]} 99... Kf2 {[%clk 0:00:03.9]} 100. Ra6 {[%clk 0:00:05.5]}
100... Kg3 {[%clk 0:00:04]} 101. Ra3 {[%clk 0:00:05.5]} 101... Kf4 {[%clk
0:00:03.6]} 102. Ra4+ {[%clk 0:00:04.7]} 102... Kg3 {[%clk 0:00:03.5]} 103. Ra3
{[%clk 0:00:03]} 103... Rxh2+ {[%clk 0:00:01.9]} 104. Kg1 {[%clk 0:00:03]}
104... Rg2+ {[%clk 0:00:02.8]} 105. Kf1 {[%clk 0:00:03.4]} 105... Rb2 {[%clk
0:00:03.5]} 106. Kg1 {[%clk 0:00:02.7]} 106... Rb1# {[%clk 0:00:03.2]} 0-1

[Event "Late-Titled-Tuesday-Blitz-June-04-2024"]
[Site "Chess.com"]
[Date "2024.06.04"]
[Round "3"]
[White "Cambek64"]
[Black "Fore_Man"]
[Result "1-0"]
[WhiteElo "2529"]
[BlackElo "2225"]
[TimeControl "180+1"]
[EndTime "14:22:40 PDT"]
[Termination "Cambek64 won by checkmate"]

1. e4 {[%clk 0:03:00.9]} 1... Nc6 {[%clk 0:02:58.4]} 2. Nc3 {[%clk 0:02:59.3]}
2... Nf6 {[%clk 0:02:58]} 3. Nf3 {[%clk 0:02:59.4]} 3... d5 {[%clk 0:02:58.5]}
4. exd5 {[%clk 0:02:59.4]} 4... Nxd5 {[%clk 0:02:59.4]} 5. Bb5 {[%clk
0:02:58.6]} 5... Nxc3 {[%clk 0:02:57.3]} 6. bxc3 {[%clk 0:02:48.7]} 6... Bd7
{[%clk 0:02:54.2]} 7. O-O {[%clk 0:02:46]} 7... e6 {[%clk 0:02:54.5]} 8. d4
{[%clk 0:02:44.5]} 8... Bd6 {[%clk 0:02:54.8]} 9. Bd3 {[%clk 0:02:42.3]} 9...
Qe7 {[%clk 0:02:50.8]} 10. Rb1 {[%clk 0:02:40.7]} 10... O-O-O {[%clk 0:02:45.4]}
11. Qe2 {[%clk 0:02:41.3]} 11... h6 {[%clk 0:02:34.9]} 12. Ba6 {[%clk
0:02:31.9]} 12... Na5 {[%clk 0:02:28.5]} 13. Bxb7+ {[%clk 0:02:31.9]} 13... Nxb7
{[%clk 0:02:28.3]} 14. Qa6 {[%clk 0:02:32.5]} 14... Be8 {[%clk 0:02:14.7]} 15.
Rxb7 {[%clk 0:02:27.4]} 15... Kd7 {[%clk 0:02:13.4]} 16. Qb5+ {[%clk 0:02:26.3]}
16... Kc8 {[%clk 0:02:13.1]} 17. Rb8# {[%clk 0:02:26.2]} 1-0

[Event "Late-Titled-Tuesday-Blitz-June-04-2024"]
[Site "Chess.com"]
[Date "2024.06.04"]
[Round "3"]
[White "Charodej1"]
[Black "bipe137"]
[Result "1-0"]
[WhiteElo "2484"]
[BlackElo "2664"]
[TimeControl "180+1"]
[EndTime "14:23:33 PDT"]
[Termination "Charodej1 won by resignation"]

1. e4 {[%clk 0:03:00.9]} 1... c5 {[%clk 0:02:57.9]} 2. Nf3 {[%clk 0:03:00.5]}
2... e6 {[%clk 0:02:55.6]} 3. d4 {[%clk 0:03:00.7]} 3... cxd4 {[%clk 0:02:55.2]}
4. Nxd4 {[%clk 0:03:01.6]} 4... Nc6 {[%clk 0:02:55.9]} 5. Nb5 {[%clk 0:03:01]}
5... Nf6 {[%clk 0:02:52.8]} 6. N1c3 {[%clk 0:03:00.8]} 6... d6 {[%clk
0:02:51.9]} 7. Bf4 {[%clk 0:02:58.8]} 7... e5 {[%clk 0:02:52]} 8. Bg5 {[%clk
0:02:59.1]} 8... a6 {[%clk 0:02:52.6]} 9. Na3 {[%clk 0:02:58.7]} 9... Be6 {[%clk
0:02:52.6]} 10. Nc4 {[%clk 0:02:53.9]} 10... Rb8 {[%clk 0:02:52.8]} 11. Ne3
{[%clk 0:02:49.1]} 11... Be7 {[%clk 0:02:52.4]} 12. Bxf6 {[%clk 0:02:44.9]}
12... Bxf6 {[%clk 0:02:53.3]} 13. Ncd5 {[%clk 0:02:44.2]} 13... Bg5 {[%clk
0:02:53.4]} 14. c3 {[%clk 0:02:37.2]} 14... Ne7 {[%clk 0:02:51.8]} 15. Bc4
{[%clk 0:02:17.2]} 15... Bxe3 {[%clk 0:02:37.3]} 16. Nxe3 {[%clk 0:02:13.3]}
16... Rc8 {[%clk 0:02:37.2]} 17. Bb3 {[%clk 0:02:10]} 17... O-O {[%clk
0:02:33.6]} 18. O-O {[%clk 0:02:09.5]} 18... Rc5 {[%clk 0:02:29.9]} 19. Qd2
{[%clk 0:01:50.9]} 19... d5 {[%clk 0:02:29.2]} 20. exd5 {[%clk 0:01:40.1]} 20...
Nxd5 {[%clk 0:02:27.9]} 21. Rfd1 {[%clk 0:01:37.3]} 1-0

[Event "Late-Titled-Tuesday-Blitz-June-04-2024"]
[Site "Chess.com"]
[Date "2024.06.04"]
[Round "3"]
[White "meme0105"]
[Black "CDOEspiao"]
[Result "0-1"]
[WhiteElo "1603"]
[BlackElo "2521"]
[TimeControl "180+1"]
[EndTime "14:23:52 PDT"]
[Termination "CDOEspiao won by resignation"]

1. e4 {[%clk 0:03:00.9]} 1... c5 {[%clk 0:02:59.8]} 2. b4 {[%clk 0:03:00.7]}
2... b6 {[%clk 0:02:57.1]} 3. bxc5 {[%clk 0:03:00.1]} 3... bxc5 {[%clk 0:02:58]}
4. Bb2 {[%clk 0:02:59.4]} 4... e6 {[%clk 0:02:57.6]} 5. Nf3 {[%clk 0:02:59.6]}
5... Nf6 {[%clk 0:02:56.9]} 6. e5 {[%clk 0:02:59.7]} 6... Nd5 {[%clk 0:02:57.2]}
7. c4 {[%clk 0:03:00.3]} 7... Nb6 {[%clk 0:02:57.4]} 8. d4 {[%clk 0:03:00.3]}
8... cxd4 {[%clk 0:02:57.6]} 9. Nxd4 {[%clk 0:02:59.5]} 9... Bb4+ {[%clk
0:02:54.3]} 10. Bc3 {[%clk 0:02:58.1]} 10... Qe7 {[%clk 0:02:53.7]} 11. Be2
{[%clk 0:02:55.7]} 11... Bb7 {[%clk 0:02:52.1]} 12. O-O {[%clk 0:02:55.4]} 12...
O-O {[%clk 0:02:51.5]} 13. Qb3 {[%clk 0:02:55.1]} 13... Na6 {[%clk 0:02:45.9]}
14. Nb5 {[%clk 0:02:47.8]} 14... Rfc8 {[%clk 0:02:36]} 15. a3 {[%clk 0:02:47.4]}
15... Bxc3 {[%clk 0:02:34.3]} 16. N1xc3 {[%clk 0:02:48.3]} 16... Nc5 {[%clk
0:02:34.6]} 17. Qc2 {[%clk 0:02:45.6]} 17... Qg5 {[%clk 0:02:31.3]} 18. f3
{[%clk 0:02:33.4]} 18... Qxe5 {[%clk 0:02:27.1]} 19. Rfe1 {[%clk 0:02:32.4]}
19... a6 {[%clk 0:02:20.2]} 20. Bd3 {[%clk 0:02:29.4]} 20... Qf4 {[%clk
0:02:11.3]} 21. Ne2 {[%clk 0:02:25.7]} 21... Qe3+ {[%clk 0:02:10.7]} 22. Kh1
{[%clk 0:02:23.9]} 22... Nxd3 {[%clk 0:02:03.3]} 23. Nd6 {[%clk 0:02:23.9]}
23... Bxf3 {[%clk 0:01:52.2]} 24. Ng3 {[%clk 0:02:06.2]} 24... Nxe1 {[%clk
0:01:46.5]} 0-1

[Event "Late-Titled-Tuesday-Blitz-June-04-2024"]
[Site "Chess.com"]
[Date "2024.06.04"]
[Round "3"]
[White "ChempionBg"]
[Black "korkmaz16"]
[Result "1-0"]
[WhiteElo "2245"]
[BlackElo "2447"]
[TimeControl "180+1"]
[EndTime "14:23:52 PDT"]
[Termination "ChempionBg won by resignation"]

1. d4 {[%clk 0:03:00.9]} 1... d5 {[%clk 0:02:57.1]} 2. c4 {[%clk 0:02:57.6]}
2... c6 {[%clk 0:02:55.4]} 3. Nf3 {[%clk 0:02:57.9]} 3... Nf6 {[%clk 0:02:54.7]}
4. g3 {[%clk 0:02:58.2]} 4... g6 {[%clk 0:02:54.5]} 5. Bg2 {[%clk 0:02:58.4]}
5... Bg7 {[%clk 0:02:55.1]} 6. O-O {[%clk 0:02:58.6]} 6... O-O {[%clk
0:02:55.8]} 7. Ne5 {[%clk 0:02:58.8]} 7... Ng4 {[%clk 0:02:54.6]} 8. cxd5 {[%clk
0:02:55.9]} 8... cxd5 {[%clk 0:02:52.1]} 9. Bf4 {[%clk 0:02:50.7]} 9... Nc6
{[%clk 0:02:49.9]} 10. Nxc6 {[%clk 0:02:41.5]} 10... bxc6 {[%clk 0:02:49.3]} 11.
Nc3 {[%clk 0:02:42.1]} 11... e5 {[%clk 0:02:48.3]} 12. dxe5 {[%clk 0:02:40.7]}
12... Nxe5 {[%clk 0:02:47.2]} 13. e4 {[%clk 0:02:40.8]} 13... Ba6 {[%clk
0:02:45.8]} 14. Bxe5 {[%clk 0:02:36.8]} 14... Bxe5 {[%clk 0:02:38.8]} 15. Re1
{[%clk 0:02:27.7]} 15... d4 {[%clk 0:02:34]} 16. Na4 {[%clk 0:02:25.5]} 16... d3
{[%clk 0:02:33.7]} 17. Rc1 {[%clk 0:02:20.2]} 17... Bb5 {[%clk 0:02:30.3]} 18.
Rc5 {[%clk 0:02:08.7]} 18... Bd4 {[%clk 0:02:27.7]} 19. Rxb5 {[%clk 0:01:59.2]}
19... cxb5 {[%clk 0:02:27.2]} 20. Nc3 {[%clk 0:01:59.9]} 20... a6 {[%clk
0:02:25.4]} 21. Rf1 {[%clk 0:01:53.4]} 21... Rc8 {[%clk 0:02:21.9]} 22. Nd5
{[%clk 0:01:46.6]} 22... Bxb2 {[%clk 0:02:13.4]} 23. Qxd3 {[%clk 0:01:45.1]}
23... Bg7 {[%clk 0:02:14]} 24. Qa3 {[%clk 0:01:41.2]} 24... Qd6 {[%clk
0:02:11.6]} 25. Qxd6 {[%clk 0:01:39.2]} 1-0

[Event "Late-Titled-Tuesday-Blitz-June-04-2024"]
[Site "Chess.com"]
[Date "2024.06.04"]
[Round "3"]
[White "i_like_explosions"]
[Black "CrushingKings"]
[Result "0-1"]
[WhiteElo "2429"]
[BlackElo "2616"]
[TimeControl "180+1"]
[EndTime "14:23:57 PDT"]
[Termination "CrushingKings won by resignation"]

1. d3 {[%clk 0:02:51.9]} 1... g6 {[%clk 0:03:00.9]} 2. d4 {[%clk 0:02:52.8]}
2... Bg7 {[%clk 0:03:01.2]} 3. Nf3 {[%clk 0:02:40.6]} 3... c6 {[%clk 0:02:58.2]}
4. c4 {[%clk 0:02:40.4]} 4... d5 {[%clk 0:02:58.4]} 5. cxd5 {[%clk 0:02:41.3]}
5... cxd5 {[%clk 0:02:58.6]} 6. Nc3 {[%clk 0:02:41.9]} 6... Nc6 {[%clk
0:02:58.8]} 7. g3 {[%clk 0:02:42.3]} 7... Bg4 {[%clk 0:02:55.9]} 8. Bg2 {[%clk
0:02:34]} 8... Bxf3 {[%clk 0:02:56]} 9. Bxf3 {[%clk 0:02:34.9]} 9... e6 {[%clk
0:02:56.3]} 10. e3 {[%clk 0:02:31.7]} 10... Nge7 {[%clk 0:02:56.1]} 11. O-O
{[%clk 0:02:32.2]} 11... O-O {[%clk 0:02:56.2]} 12. Rb1 {[%clk 0:02:31.9]} 12...
Rc8 {[%clk 0:02:55.2]} 13. Bd2 {[%clk 0:02:30.9]} 13... Na5 {[%clk 0:02:53.8]}
14. b3 {[%clk 0:02:30]} 14... a6 {[%clk 0:02:52.3]} 15. Qe2 {[%clk 0:02:30.1]}
15... b5 {[%clk 0:02:52.1]} 16. Rfc1 {[%clk 0:02:30.3]} 16... Qb6 {[%clk
0:02:51.3]} 17. Nd1 {[%clk 0:02:29.9]} 17... Nb7 {[%clk 0:02:49.9]} 18. Nb2
{[%clk 0:02:30.1]} 18... Nc6 {[%clk 0:02:48.7]} 19. Nd3 {[%clk 0:02:30.4]} 19...
Nd6 {[%clk 0:02:42.6]} 20. Nc5 {[%clk 0:02:30.2]} 20... Rfd8 {[%clk 0:02:38.1]}
21. a4 {[%clk 0:02:27.6]} 21... Bxd4 {[%clk 0:02:29]} 22. Nxe6 {[%clk
0:02:11.9]} 22... fxe6 {[%clk 0:02:21]} 23. exd4 {[%clk 0:02:12]} 23... Nxd4
{[%clk 0:02:20.7]} 24. Qe3 {[%clk 0:02:12.1]} 24... N6f5 {[%clk 0:01:43.7]} 25.
Qf4 {[%clk 0:02:07.1]} 25... e5 {[%clk 0:01:42.2]} 26. Qg4 {[%clk 0:02:03.4]}
26... h5 {[%clk 0:01:42]} 0-1

[Event "Late-Titled-Tuesday-Blitz-June-04-2024"]
[Site "Chess.com"]
[Date "2024.06.04"]
[Round "3"]
[White "drdaro"]
[Black "CixPer1968"]
[Result "1-0"]
[WhiteElo "2385"]
[BlackElo "2138"]
[TimeControl "180+1"]
[EndTime "14:24:03 PDT"]
[Termination "drdaro won by resignation"]

1. Nf3 {[%clk 0:03:00.9]} 1... d5 {[%clk 0:02:55.3]} 2. g3 {[%clk 0:03:00.4]}
2... Nf6 {[%clk 0:02:55.1]} 3. Bg2 {[%clk 0:03:01.3]} 3... Qd7 {[%clk
0:02:55.2]} 4. O-O {[%clk 0:03:02.2]} 4... Nc6 {[%clk 0:02:50]} 5. d4 {[%clk
0:03:01]} 5... g6 {[%clk 0:02:47.8]} 6. c4 {[%clk 0:03:00.9]} 6... Bg7 {[%clk
0:02:47.1]} 7. Nc3 {[%clk 0:02:59.9]} 7... e6 {[%clk 0:02:45.2]} 8. cxd5 {[%clk
0:02:59.6]} 8... exd5 {[%clk 0:02:46.1]} 9. Ne5 {[%clk 0:02:57.2]} 9... Qd8
{[%clk 0:02:42.6]} 10. Nxc6 {[%clk 0:02:52.6]} 10... bxc6 {[%clk 0:02:43.5]} 11.
e4 {[%clk 0:02:52.7]} 11... O-O {[%clk 0:02:40]} 12. e5 {[%clk 0:02:50.6]} 12...
Ne8 {[%clk 0:02:38.6]} 13. f4 {[%clk 0:02:48.9]} 13... h5 {[%clk 0:02:37.3]} 14.
b3 {[%clk 0:02:44.7]} 14... Bg4 {[%clk 0:02:34.6]} 15. Qd2 {[%clk 0:02:32.6]}
15... Qd7 {[%clk 0:02:30.3]} 16. Ba3 {[%clk 0:02:32.1]} 16... Rb8 {[%clk
0:02:27.4]} 17. Na4 {[%clk 0:02:31]} 17... Qf5 {[%clk 0:02:24.6]} 18. Rac1
{[%clk 0:02:25.9]} 18... Bh3 {[%clk 0:02:19.9]} 19. Rxc6 {[%clk 0:02:20.2]}
19... Bxg2 {[%clk 0:02:19.2]} 20. Kxg2 {[%clk 0:02:17.5]} 20... h4 {[%clk
0:02:19.2]} 21. Bxf8 {[%clk 0:02:07.2]} 21... Bxf8 {[%clk 0:02:17.2]} 22. Qc2
{[%clk 0:02:04.3]} 22... Qg4 {[%clk 0:02:13.2]} 23. Nc5 {[%clk 0:01:57.3]} 23...
hxg3 {[%clk 0:02:11]} 24. hxg3 {[%clk 0:01:57.2]} 24... g5 {[%clk 0:02:11.1]}
25. Rh1 {[%clk 0:01:51]} 25... f5 {[%clk 0:02:05.6]} 26. exf6 {[%clk 0:01:47.2]}
1-0

[Event "Late-Titled-Tuesday-Blitz-June-04-2024"]
[Site "Chess.com"]
[Date "2024.06.04"]
[Round "3"]
[White "sergeikim"]
[Black "Kielinkei"]
[Result "0-1"]
[WhiteElo "2604"]
[BlackElo "2446"]
[TimeControl "180+1"]
[EndTime "14:24:04 PDT"]
[Termination "Kielinkei won by resignation"]

1. d4 {[%clk 0:03:00.9]} 1... Nf6 {[%clk 0:02:59.9]} 2. c4 {[%clk 0:03:00.8]}
2... e6 {[%clk 0:03:00.1]} 3. Nc3 {[%clk 0:03:00.6]} 3... Bb4 {[%clk 0:03:00.2]}
4. Qc2 {[%clk 0:03:00.5]} 4... O-O {[%clk 0:02:59.5]} 5. a3 {[%clk 0:03:00.5]}
5... Bxc3+ {[%clk 0:02:59.3]} 6. Qxc3 {[%clk 0:03:01.4]} 6... d5 {[%clk
0:02:59.9]} 7. Nf3 {[%clk 0:03:01.2]} 7... dxc4 {[%clk 0:02:59.5]} 8. Qxc4
{[%clk 0:03:00.9]} 8... b6 {[%clk 0:03:00]} 9. Bf4 {[%clk 0:03:00.7]} 9... c5
{[%clk 0:02:27.8]} 10. dxc5 {[%clk 0:02:59.3]} 10... Ba6 {[%clk 0:02:27.4]} 11.
Qa4 {[%clk 0:02:58.3]} 11... bxc5 {[%clk 0:02:24.6]} 12. Bxb8 {[%clk 0:02:57]}
12... Qxb8 {[%clk 0:02:14.3]} 13. Qc2 {[%clk 0:02:43.1]} 13... Qb6 {[%clk
0:02:09.6]} 14. g3 {[%clk 0:02:39.2]} 14... Rab8 {[%clk 0:02:08.4]} 15. Rb1
{[%clk 0:02:38.5]} 15... Rfd8 {[%clk 0:01:43.5]} 16. Bg2 {[%clk 0:02:37]} 16...
Qb5 {[%clk 0:01:40.7]} 17. O-O {[%clk 0:02:36.8]} 17... Qxe2 {[%clk 0:01:28.8]}
18. Qxc5 {[%clk 0:02:33.2]} 18... Rxb2 {[%clk 0:01:17.7]} 19. Qxa7 {[%clk
0:02:24.3]} 19... Rxb1 {[%clk 0:01:13.1]} 20. Rxb1 {[%clk 0:02:23.4]} 20... Rd1+
{[%clk 0:01:07.4]} 0-1

[Event "Late-Titled-Tuesday-Blitz-June-04-2024"]
[Site "Chess.com"]
[Date "2024.06.04"]
[Round "3"]
[White "Likvidator228"]
[Black "mostafa_sakha"]
[Result "1-0"]
[WhiteElo "2585"]
[BlackElo "2408"]
[TimeControl "180+1"]
[EndTime "14:24:24 PDT"]
[Termination "Likvidator228 won by resignation"]

1. d4 {[%clk 0:03:00.9]} 1... Nf6 {[%clk 0:02:59.6]} 2. Nf3 {[%clk 0:03:01.2]}
2... d5 {[%clk 0:02:59.7]} 3. g3 {[%clk 0:03:01.5]} 3... Bf5 {[%clk 0:02:59.2]}
4. Bg2 {[%clk 0:03:00.3]} 4... c6 {[%clk 0:02:58.5]} 5. O-O {[%clk 0:03:00.6]}
5... h6 {[%clk 0:02:58.3]} 6. c4 {[%clk 0:03:01.1]} 6... e6 {[%clk 0:02:58.3]}
7. Nc3 {[%clk 0:03:01.6]} 7... Nbd7 {[%clk 0:02:57.9]} 8. Nd2 {[%clk 0:03:01.9]}
8... Be7 {[%clk 0:02:45.1]} 9. e4 {[%clk 0:03:02.4]} 9... dxe4 {[%clk
0:02:44.9]} 10. Ndxe4 {[%clk 0:03:03.3]} 10... Nxe4 {[%clk 0:02:42.9]} 11. Nxe4
{[%clk 0:03:03.2]} 11... O-O {[%clk 0:02:42.1]} 12. Be3 {[%clk 0:03:01.9]} 12...
Nf6 {[%clk 0:02:37.3]} 13. Nc3 {[%clk 0:03:02]} 13... Qa5 {[%clk 0:02:33.4]} 14.
Qb3 {[%clk 0:02:56.8]} 14... Qa6 {[%clk 0:02:27.5]} 15. Rfd1 {[%clk 0:02:56.3]}
15... Rad8 {[%clk 0:02:26.4]} 16. h3 {[%clk 0:02:56.5]} 16... Rd7 {[%clk
0:02:19.1]} 17. Rd2 {[%clk 0:02:54.3]} 17... Rfd8 {[%clk 0:02:18.7]} 18. Rad1
{[%clk 0:02:54.8]} 18... Qa5 {[%clk 0:01:44.2]} 19. a3 {[%clk 0:02:52.5]} 19...
a6 {[%clk 0:01:16.9]} 20. d5 {[%clk 0:02:41.2]} 20... cxd5 {[%clk 0:01:12.7]}
21. Bb6 {[%clk 0:02:40.7]} 21... dxc4 {[%clk 0:01:04.8]} 22. Bxa5 {[%clk
0:02:40.7]} 22... cxb3 {[%clk 0:01:04.2]} 23. Bxd8 {[%clk 0:02:39.5]} 1-0